bitfinex/quotes_SOLUSD_20250527
["timestamp","ask_amount","ask_price","bid_price","bid_amount"]
[1748371623208,1.96113707,178.47,178.43,21.12007991]
[1748371623413,1.96113707,178.47,178.44,21.12007991]
[1748371623615,1.96113707,178.47,178.46,21.12007991]
[1748371623809,0.56031826,178.47,178.46,21.12007991]
[1748371624997,1.40056363,178.5,178.46,21.12007991]
[1748371625190,1.40056363,178.5,178.48,21.12007991]
[1748371625715,1.40056363,178.5,178.43,35.26]
[1748371626016,21.12007991,178.48,178.44,21.12007991]
[1748371626318,39.76972877,178.49,178.44,21.12007991]
[1748371626506,39.76972877,178.49,178.45,21.12007991]
[1748371627119,0.56028686,178.48,178.45,21.12007991]
[1748371627287,0.56028686,178.48,178.47,21.12007991]
[1748371628530,49.08108393,178.48,178.39,8.1996]
[1748371628705,49.08108393,178.48,178.44,21.12007991]
[1748371628903,27.96100402,178.48,178.44,21.12007991]
[1748371629114,27.96100402,178.48,178.45,21.12007991]
[1748371629903,27.96100402,178.48,178.44,21.12007991]
[1748371630101,23.08108393,178.48,178.4,89.0]
[1748371630301,21.12007991,178.44,178.39,6.5641]
[1748371630513,21.12007991,178.44,178.4,21.12007991]
[1748371630709,44.64964886,178.47,178.42,21.12007991]
[1748371630919,18.64964886,178.46,178.42,21.12007991]
[1748371631232,0.56038105,178.45,178.42,21.12007991]
[1748371633604,0.56038105,178.45,178.39,6.5641]
[1748371633605,18.64964886,178.44,178.4,21.12007991]
[1748371634321,1.96133369,178.45,178.43,21.12007991]
[1748371634708,1.96133369,178.45,178.42,21.12007991]
[1748371635355,1.40095264,178.45,178.42,21.12007991]
[1748371636832,1.40095264,178.45,178.39,6.5641]
[1748371637022,39.76972877,178.44,178.4,21.12007991]
[1748371637224,0.56044387,178.43,178.4,21.12007991]
[1748371639150,23.08163345,178.43,178.39,89.0]
[1748371641932,23.08163345,178.43,178.38,21.12007991]
[1748371642128,18.64964886,178.42,178.38,21.12007991]
[1748371643723,1.96177343,178.41,178.34,89.0]
[1748371643927,1.96177343,178.41,178.38,21.12007991]
[1748371646036,1.96177343,178.41,178.39,21.12007991]
[1748371646429,1.96177343,178.41,178.38,21.12007991]
[1748371648235,1.96177343,178.41,178.37,41.6402]
[1748371648436,1.96177343,178.41,178.38,21.12007991]
[1748371650848,1.96177343,178.41,178.37,62.76027991]
[1748371651624,39.76972877,178.4,178.35,21.12007991]
[1748371651951,39.76972877,178.4,178.33,27.61547991]
[1748371651952,21.12007991,178.37,178.33,27.61547991]
[1748371652132,21.12007991,178.37,178.33,21.12007991]
[1748371652529,21.12007991,178.37,178.32,119.56007991]
[1748371652739,1.96232338,178.36,178.32,119.56007991]
[1748371652933,1.96232338,178.36,178.32,30.56007991]
[1748371654781,1.96232338,178.36,178.33,21.12007991]
[1748371656188,0.56066382,178.36,178.35,21.12007991]
[1748371657183,1.40143754,178.39,178.35,21.12007991]
[1748371657351,1.40143754,178.39,178.36,21.12007991]
[1748371657556,1.40143754,178.39,178.35,21.12007991]
[1748371658645,1.40143754,178.39,178.36,21.12007991]
[1748371662182,1.40143754,178.39,178.35,21.12007991]
[1748371663073,39.76972877,178.38,178.33,21.12007991]
[1748371663981,1.96221337,178.37,178.33,21.12007991]
[1748371666084,1.96221337,178.37,178.34,21.12007991]
[1748371670179,1.96221337,178.37,178.33,21.12007991]
[1748371670398,23.08229328,178.37,178.32,30.56007991]
[1748371671289,1.96221337,178.37,178.32,30.56007991]
[1748371675985,1.96221337,178.37,178.33,21.12007991]
[1748371680704,23.08229328,178.37,178.32,21.12007991]
[1748371681871,1.96221337,178.37,178.33,21.12007991]
[1748371683701,23.08229328,178.37,178.32,21.12007991]
[1748371685105,1.96221337,178.37,178.33,21.12007991]
[1748371686696,1.96221337,178.37,178.34,21.12007991]
[1748371686897,1.96221337,178.37,178.3,90.5078]
[1748371686898,0.56063239,178.37,178.36,21.12007991]
[1748371687201,1.40140257,178.4,178.36,21.12007991]
[1748371687202,1.96194068,178.4,178.36,21.12007991]
[1748371687412,1.96194068,178.4,178.37,21.12007991]
[1748371688505,0.56053811,178.4,178.38,21.12007991]
[1748371688707,0.56053811,178.4,178.39,21.12007991]
[1748371689015,1.96159962,178.43,178.39,21.12007991]
[1748371689193,1.96159962,178.43,178.4,21.12007991]
[1748371690208,1.40115575,178.43,178.4,21.12007991]
[1748371691412,1.96159962,178.43,178.39,21.12007991]
[1748371691714,21.12007991,178.42,178.38,21.12007991]
[1748371691918,21.12007991,178.42,178.37,56.30007991]
[1748371692494,21.12007991,178.42,178.38,21.12007991]
[1748371693011,41.73132839,178.43,178.38,21.12007991]
[1748371694099,39.76972877,178.42,178.38,21.12007991]
[1748371694796,18.64964886,178.42,178.38,21.12007991]
[1748371695518,1.96177343,178.41,178.37,21.12007991]
[1748371695716,18.64964886,178.4,178.35,21.12007991]
[1748371695893,39.76972877,178.4,178.35,21.12007991]
[1748371697427,0.56056953,178.39,178.35,21.12007991]
[1748371698200,1.96199337,178.39,178.35,21.12007991]
[1748371701398,0.56056953,178.39,178.37,21.12007991]
[1748371701604,0.56056953,178.39,178.33,36.8251]
[1748371701605,0.56056953,178.39,178.38,21.12007991]
[1748371702309,18.64964886,178.42,178.38,21.12007991]
[1748371702522,18.64964886,178.41,178.37,21.12007991]
[1748371703301,18.64964886,178.45,178.39,21.12007991]
[1748371703608,23.21345458,178.44,178.39,21.12007991]
[1748371703812,21.12007991,178.44,178.39,21.12007991]
[1748371704029,21.12007991,178.43,178.38,21.12007991]
[1748371705048,1.96166348,178.42,178.38,21.12007991]
[1748371705404,18.64964886,178.41,178.37,151.59977991]
[1748371705706,18.64964886,178.37,178.33,29.15457991]
[1748371705904,39.76972877,178.37,178.33,6.3894]
[1748371706129,39.76972877,178.37,178.32,21.12007991]
[1748371706517,21.12007991,178.36,178.31,21.12007991]
[1748371707134,0.56069526,178.35,178.31,21.12007991]
[1748371707833,1.96243341,178.35,178.31,21.12007991]
[1748371710107,39.76972877,178.34,178.3,9.4]
[1748371710324,39.76972877,178.34,178.29,6.3894]
[1748371710325,39.76972877,178.34,178.29,27.50947991]
[1748371711943,18.64964886,178.34,178.3,21.12007991]
[1748371712351,0.56075814,178.33,178.3,21.12007991]
[1748371713951,1.9626535,178.33,178.29,27.50947991]
[1748371715116,1.9626535,178.33,178.3,21.12007991]
[1748371715319,0.56075814,178.33,178.31,21.12007991]
[1748371715943,19.21034412,178.35,178.31,21.12007991]
[1748371716318,0.56069526,178.35,178.31,21.12007991]
[1748371716518,0.56069526,178.35,178.32,21.12007991]
[1748371718447,0.56066382,178.36,178.33,21.12007991]
[1748371718823,0.56066382,178.36,178.34,21.12007991]
[1748371719168,0.56066382,178.36,178.31,145.28007991]
[1748371719169,21.12007991,178.35,178.31,145.28007991]
[1748371719334,21.12007991,178.35,178.31,124.16]
[1748371719656,21.12007991,178.35,178.31,89.0]
[1748371719943,21.12007991,178.34,178.29,36.90947991]
[1748371720146,21.12007991,178.33,178.29,36.90947991]
[1748371720346,0.56078959,178.32,178.29,36.90947991]
[1748371721550,21.12007991,178.31,178.26,115.0]
[1748371721824,23.08284347,178.32,178.28,21.12007991]
[1748371722334,1.96276356,178.32,178.28,21.12007991]
[1748371723562,23.08284347,178.32,178.28,21.12007991]
[1748371724756,0.56078959,178.32,178.29,21.12007991]
[1748371726649,22.52199294,178.33,178.29,21.12007991]
[1748371727071,0.5607267,178.34,178.32,21.12007991]
[1748371727255,0.5607267,178.34,178.33,21.12007991]
[1748371728131,1.40145735,178.39,178.33,21.12007991]
[1748371728333,1.40145735,178.39,178.35,21.12007991]
[1748371728544,1.40145735,178.39,178.36,21.12007991]
[1748371728743,0.56056953,178.39,178.38,21.12007991]
[1748371730722,1.96170728,178.42,178.38,21.12007991]
[1748371731549,1.96170728,178.42,178.39,21.12007991]
[1748371732859,1.96170728,178.42,178.38,21.12007991]
[1748371733153,0.56053811,178.4,178.37,21.12007991]
[1748371733534,0.56053811,178.4,178.38,21.12007991]
[1748371734233,0.56053811,178.4,178.37,21.12007991]
[1748371737954,0.56053811,178.4,178.38,21.12007991]
[1748371740370,1.9618834,178.4,178.37,21.12007991]
[1748371743850,1.9618834,178.4,178.39,21.12007991]
[1748371744660,18.64964886,178.39,178.34,26.0]
[1748371744834,18.64964886,178.39,178.35,21.12007991]
[1748371745030,18.64964886,178.39,178.37,21.12007991]
[1748371745365,1.9618834,178.4,178.38,21.12007991]
[1748371746554,1.40134529,178.4,178.38,21.12007991]
[1748371747264,1.40134529,178.4,178.39,21.12007991]
[1748371747761,0.56047528,178.42,178.39,21.12007991]
[1748371748645,1.96166348,178.42,178.4,21.12007991]
[1748371749374,1.96166348,178.42,178.41,21.12007991]
[1748371750068,1.96166348,178.42,178.4,21.12007991]
[1748371753243,1.96166348,178.42,178.39,21.12007991]
[1748371753968,1.96166348,178.42,178.38,21.12007991]
[1748371754170,39.76972877,178.41,178.37,21.12007991]
[1748371754345,39.76972877,178.41,178.36,21.12007991]
[1748371756044,18.64964886,178.39,178.36,21.12007991]
[1748371758189,0.56060096,178.38,178.36,21.12007991]
[1748371759413,0.56060096,178.38,178.37,21.12007991]
[1748371760611,1.40134529,178.4,178.37,21.12007991]
[1748371760769,1.40134529,178.4,178.38,21.12007991]
[1748371761470,1.40134529,178.4,178.36,21.12007991]
[1748371762208,1.40134529,178.4,178.33,44.46]
[1748371762209,18.64964886,178.39,178.35,21.12007991]
[1748371762509,65.76972877,178.37,178.33,21.12007991]
[1748371762713,0.56066382,178.36,178.33,21.12007991]
[1748371763396,0.56066382,178.36,178.34,21.12007991]
[1748371767606,0.56066382,178.36,178.35,21.12007991]
[1748371769294,0.56066382,178.36,178.34,21.12007991]
[1748371773011,0.56066382,178.36,178.35,21.12007991]
[1748371777328,1.40139224,178.4,178.35,110.12007991]
[1748371777531,1.40139224,178.4,178.39,21.12007991]
[1748371778049,0.56050669,178.41,178.39,21.12007991]
[1748371779450,1.96160293,178.43,178.4,21.12007991]
[1748371779607,1.96160293,178.43,178.42,21.12007991]
[1748371780447,1.96160293,178.43,178.41,21.12007991]
[1748371780735,0.56044387,178.43,178.42,21.12007991]
[1748371781907,0.56038105,178.45,178.42,21.12007991]
[1748371782111,0.56038105,178.45,178.44,21.12007991]
[1748371782850,0.56038105,178.45,178.42,35.06]
[1748371783017,0.56038105,178.45,178.44,21.12007991]
[1748371783406,1.96092961,178.49,178.44,21.12007991]
[1748371788817,1.96092961,178.49,178.45,21.12007991]
[1748371790020,23.08100952,178.49,178.45,21.12007991]
[1748371791623,1.96092961,178.49,178.45,21.12007991]
[1748371792345,1.96092961,178.49,178.45,21.17087897]
[1748371792849,1.96092961,178.49,178.46,21.17087897]
[1748371798942,1.96092961,178.49,178.48,21.17087897]
[1748371799328,1.40067414,178.49,178.48,21.17087897]
[1748371805763,0.5601927,178.51,178.48,21.17087897]
[1748371805970,0.5601927,178.51,178.5,21.17087897]
[1748371806841,1.96060864,178.52,178.5,21.17087897]
[1748371807059,1.96060864,178.52,178.51,21.17087897]
[1748371812949,0.56016132,178.52,178.51,21.17087897]
[1748371815166,1.40019564,178.55,178.51,21.17087897]
[1748371815375,1.40019564,178.55,178.53,21.17087897]
[1748371818299,1.40019564,178.55,178.54,21.17087897]
[1748371821988,1.40019564,178.55,178.53,21.17087897]
[1748371822890,1.40019564,178.55,178.54,21.17087897]
[1748371824497,0.56003584,178.56,178.54,21.17087897]
[1748371824793,0.56000448,178.57,178.55,21.17087897]
[1748371825107,0.56000448,178.57,178.56,21.17087897]
[1748371826768,20.60922558,178.61,178.56,21.17087897]
[1748371826977,20.60922558,178.61,178.57,21.17087897]
[1748371829479,20.60922558,178.61,178.58,21.17087897]
[1748371830191,41.78010455,178.61,178.54,123.98]
[1748371830405,41.78010455,178.61,178.56,21.17087897]
[1748371830641,41.78010455,178.61,178.54,123.98]
[1748371830789,21.17087897,178.59,178.54,123.98]
[1748371831110,0.55997312,178.58,178.55,21.17087897]
[1748371831308,18.64964886,178.57,178.51,104.4625]
[1748371831611,39.82052783,178.57,178.52,21.17087897]
[1748371831785,0.55997312,178.58,178.56,21.17087897]
[1748371831984,0.55997312,178.58,178.57,13.52687039]
[1748371833007,18.64964886,178.64,178.57,19.60927039]
[1748371833008,0.55991041,178.6,178.57,19.60927039]
[1748371833206,1.95935733,178.63,178.57,19.60927039]
[1748371833414,1.95935733,178.63,178.61,13.52687039]
[1748371833922,1.95935733,178.63,178.61,21.13308585]
[1748371834486,1.95935733,178.63,178.6,21.13308585]
[1748371835296,4.75843923,178.63,178.57,6.0824]
[1748371835514,4.75843923,178.63,178.59,21.13308585]
[1748371835838,4.75843923,178.63,178.6,21.13308585]
[1748371836589,4.75843923,178.63,178.59,21.13308585]
[1748371836992,25.89152508,178.63,178.59,21.13308585]
[1748371837199,25.89152508,178.63,178.57,6.0824]
[1748371837415,25.89152508,178.63,178.59,21.13308585]
[1748371837606,25.89152508,178.63,178.52,6.1181]
[1748371837607,18.64964886,178.6,178.52,6.1181]
[1748371837796,21.13308585,178.56,178.51,21.13308585]
[1748371838137,21.13308585,178.56,178.5,36.5451]
[1748371838411,21.13308585,178.56,178.52,21.13308585]
[1748371838993,21.13308585,178.56,178.5,36.5451]
[1748371839316,21.13308585,178.55,178.51,21.13308585]
[1748371839518,0.56009857,178.54,178.51,21.13308585]
[1748371841422,1.96034501,178.54,178.52,21.13308585]
[1748371842512,1.40024644,178.54,178.52,21.13308585]
[1748371844524,0.56003584,178.56,178.53,21.13308585]
[1748371844833,0.56003584,178.56,178.54,21.13308585]
[1748371849825,0.56003584,178.56,178.5,125.5451]
[1748371849826,18.64964886,178.55,178.49,115.0]
[1748371849999,21.13308585,178.54,178.49,21.13308585]
[1748371851007,1.96045482,178.53,178.49,21.13308585]
[1748371851415,18.64964886,178.52,178.48,21.13308585]
[1748371852000,18.64964886,178.52,178.49,21.13308585]
[1748371853422,0.5601927,178.51,178.49,21.13308585]
[1748371855112,1.96067446,178.51,178.48,21.13308585]
[1748371855715,18.64964886,178.5,178.46,26.0]
[1748371856023,18.64964886,178.5,178.46,47.13308585]
[1748371856905,39.78273471,178.5,178.44,26.0]
[1748371857226,1.96089416,178.49,178.45,21.13308585]
[1748371859526,1.96089416,178.49,178.46,21.13308585]
[1748371860655,1.96089416,178.49,178.43,42.7071]
[1748371860835,1.96089416,178.49,178.45,21.13308585]
[1748371861136,1.96089416,178.49,178.46,21.13308585]
[1748371861297,1.96089416,178.49,178.45,21.13308585]
[1748371863730,39.78273471,178.48,178.39,32.254]
[1748371863905,18.64964886,178.48,178.44,21.13308585]
[1748371865031,0.56031826,178.47,178.44,21.13308585]
[1748371865331,1.96111391,178.47,178.43,21.13308585]
[1748371866236,1.96111391,178.47,178.41,34.94]
[1748371866573,1.96111391,178.47,178.43,21.13308585]
[1748371867037,23.09419976,178.47,178.43,21.13308585]
[1748371867619,1.96111391,178.47,178.43,21.13308585]
[1748371870342,1.96111391,178.47,178.44,21.13308585]
[1748371871743,1.96111391,178.47,178.45,21.13308585]
[1748371872538,1.96111391,178.47,178.44,21.13308585]
[1748371872713,1.96111391,178.47,178.41,34.92]
[1748371872914,1.96111391,178.47,178.44,21.13308585]
[1748371875630,18.64964886,178.4,178.36,21.13308585]
[1748371876346,0.56056953,178.39,178.35,27.69788585]
[1748371876642,1.96199337,178.39,178.35,27.69788585]
[1748371877849,23.09507922,178.39,178.34,1.5377]
[1748371878048,23.09507922,178.39,178.34,56.05308585]
[1748371878247,0.56063239,178.37,178.34,56.05308585]
[1748371878450,0.56063239,178.37,178.36,21.13308585]
[1748371879546,0.56050669,178.41,178.37,6.3645]
[1748371879751,0.56041246,178.44,178.4,21.13308585]
[1748371879952,0.56041246,178.44,178.43,21.13308585]
[1748371881051,1.40100274,178.45,178.43,21.13308585]
[1748371881951,1.40100274,178.45,178.44,21.13308585]
[1748371882255,0.56034965,178.46,178.44,21.13308585]
[1748371883125,0.56034965,178.46,178.42,34.92]
[1748371883326,0.56034965,178.46,178.44,21.13308585]
[1748371885754,1.96122379,178.46,178.43,21.13308585]
[1748371885947,18.64964886,178.45,178.37,6.3645]
[1748371886139,39.78273471,178.45,178.4,21.13308585]
[1748371886454,18.64964886,178.43,178.4,21.13308585]
[1748371886639,18.64964886,178.43,178.38,34.92]
[1748371887051,18.64964886,178.43,178.4,21.13308585]
[1748371887740,0.56047528,178.42,178.4,21.13308585]
[1748371888056,0.56047528,178.42,178.41,21.13308585]
[1748371890350,0.56047528,178.42,178.37,130.2845]
[1748371890551,1.96166348,178.42,178.4,21.13308585]
[1748371890930,1.96166348,178.42,178.41,21.13308585]
[1748371891252,0.56047528,178.42,178.41,21.13308585]
[1748371892250,0.56047528,178.42,178.41,56.05308585]
[1748371892441,1.96138696,178.45,178.41,56.05308585]
[1748371892750,1.96138696,178.45,178.43,21.13308585]
[1748371893729,1.96138696,178.45,178.44,21.13308585]
[1748371893935,0.56038105,178.45,178.44,21.13308585]
[1748371895859,1.9610523,178.48,178.44,21.13308585]
[1748371896036,1.9610523,178.48,178.41,149.92]
[1748371896037,1.9610523,178.48,178.47,21.13308585]
[1748371896353,0.56028686,178.48,178.47,21.13308585]
[1748371897747,1.96071851,178.51,178.47,21.13308585]
[1748371898164,1.96071851,178.51,178.48,21.13308585]
[1748371899246,1.96089416,178.49,178.45,34.9]
[1748371899539,1.96089416,178.49,178.47,21.13308585]
[1748371900056,1.96089416,178.49,178.46,21.13308585]
[1748371904680,1.96089416,178.49,178.45,34.9]
[1748371904879,1.96089416,178.49,178.46,21.13308585]
[1748371910361,1.96089416,178.49,178.38,173.43897802]
[1748371910362,21.13308585,178.47,178.4,6.3968]
[1748371910581,21.13308585,178.45,178.41,21.13308585]
[1748371910871,39.78273471,178.44,178.39,56.01308585]
[1748371911169,18.64964886,178.43,178.39,56.01308585]
[1748371911359,9.24,178.48,178.4,21.13308585]
[1748371911547,18.64964886,178.44,178.41,21.13308585]
[1748371911872,18.64964886,178.44,178.4,21.13308585]
[1748371912250,18.64964886,178.44,178.41,21.13308585]
[1748371912251,1.40109045,178.44,178.41,21.13308585]
[1748371913172,1.96150291,178.44,178.41,21.13308585]
[1748371913544,1.96150291,178.44,178.4,21.13308585]
[1748371913744,1.96150291,178.44,178.39,34.88]
[1748371913946,1.96150291,178.44,178.4,21.13308585]
[1748371915457,18.64964886,178.43,178.39,21.13308585]
[1748371915758,18.64964886,178.42,178.38,21.13308585]
[1748371916060,21.13308585,178.41,178.36,15.6368]
[1748371916246,21.13308585,178.4,178.36,6.3968]
[1748371916446,18.64964886,178.4,178.36,21.13308585]
[1748371917871,0.56056953,178.39,178.35,21.13308585]
[1748371918075,21.69365538,178.39,178.34,21.13308585]
[1748371919075,23.09507922,178.39,178.34,21.13308585]
[1748371919450,1.96199337,178.39,178.35,21.13308585]
[1748371922066,1.96199337,178.39,178.36,21.13308585]
[1748371922257,1.96199337,178.39,178.33,36.4111]
[1748371922453,1.96199337,178.39,178.35,21.13308585]
[1748371923997,0.56056953,178.39,178.37,21.13308585]
[1748371925182,1.96177343,178.41,178.38,21.13308585]
[1748371925501,1.96177343,178.41,178.4,21.13308585]
[1748371926486,1.40126674,178.41,178.4,21.13308585]
[1748371927073,0.56044387,178.43,178.4,21.13308585]
[1748371930256,1.96155354,178.43,178.4,21.13308585]
[1748371930458,1.96155354,178.43,178.41,21.13308585]
[1748371930872,1.96155354,178.43,178.4,21.13308585]
[1748371931865,1.96155354,178.43,178.39,21.13308585]
[1748371934165,1.96155354,178.43,178.37,34.88]
[1748371934386,1.96155354,178.43,178.39,21.13308585]
[1748371934798,0.56050669,178.41,178.39,21.13308585]
[1748371935981,19.21012414,178.42,178.39,21.13308585]
[1748371942226,20.61131234,178.42,178.4,21.13308585]
[1748371943209,20.61131234,178.42,178.37,34.86]
[1748371943210,20.61131234,178.42,178.39,21.13308585]
[1748371943505,18.64964886,178.4,178.33,90.5311]
[1748371943709,18.64964886,178.4,178.36,21.13308585]
[1748371944097,18.64964886,178.4,178.37,21.13308585]
[1748371944291,0.56056953,178.39,178.37,21.13308585]
[1748371945323,0.56056953,178.39,178.38,21.13308585]
[1748371946699,1.96166348,178.42,178.38,21.13308585]
[1748371946907,1.96166348,178.42,178.4,21.13308585]
[1748371949422,1.96166348,178.42,178.38,21.13308585]
[1748371949811,1.96166348,178.42,178.34,123.86]
[1748371949812,18.64964886,178.41,178.37,21.13308585]
[1748371950009,18.64964886,178.41,178.38,21.13308585]
[1748371951000,1.96166348,178.42,178.4,21.13308585]
[1748371952418,1.96166348,178.42,178.38,21.13308585]
[1748371953303,1.96166348,178.42,178.39,21.13308585]
[1748371953924,1.96166348,178.42,178.4,21.13308585]
[1748371954204,1.96166348,178.42,178.41,21.13308585]
[1748371955632,0.56041246,178.44,178.41,21.13308585]
[1748371959339,1.96144361,178.44,178.4,21.13308585]
[1748371962304,1.96144361,178.44,178.36,123.86]
[1748371962509,1.96144361,178.44,178.4,21.13308585]
[1748371963114,0.56041246,178.44,178.43,21.13308585]
[1748371963638,0.56034965,178.46,178.43,21.13308585]
[1748371963807,0.56034965,178.46,178.45,21.13308585]
[1748371965215,0.56028686,178.48,178.45,21.13308585]
[1748371965519,1.96100402,178.48,178.46,21.13308585]
[1748371969346,0.56028686,178.48,178.47,21.13308585]
[1748371970343,1.40053925,178.51,178.47,21.13308585]
[1748371970640,1.96073195,178.51,178.5,21.13308585]
[1748371971141,0.5601927,178.51,178.5,21.13308585]
[1748371971345,0.56012995,178.53,178.5,21.13308585]
[1748371971549,1.96045482,178.53,178.52,21.13308585]
[1748371972146,1.96045482,178.53,178.51,21.13308585]
[1748371973534,1.96045482,178.53,178.47,34.84]
[1748371973837,1.96045482,178.53,178.49,21.13308585]
[1748371975038,27.96045482,178.53,178.5,21.13308585]
[1748371975244,1.96045482,178.53,178.5,21.13308585]
[1748371976340,27.96045482,178.53,178.51,21.13308585]
[1748371977939,1.96045482,178.53,178.51,21.13308585]
[1748371979047,1.96045482,178.53,178.5,21.13308585]
[1748371980439,1.96045482,178.53,178.48,21.13308585]
[1748371980440,18.64964886,178.52,178.48,21.13308585]
[1748371982047,0.5601927,178.51,178.48,21.13308585]
[1748371982616,1.96067446,178.51,178.49,21.13308585]
[1748371984445,1.96067446,178.51,178.5,21.13308585]
[1748371985127,1.96067446,178.51,178.49,21.13308585]
[1748371987849,1.96067446,178.51,178.5,21.13308585]
[1748371988430,0.5601927,178.51,178.5,21.13308585]
[1748371988637,1.96040462,178.54,178.5,21.13308585]
[1748371988960,1.96040462,178.54,178.52,21.13308585]
[1748371990357,1.96040462,178.54,178.47,26.0]
[1748371990647,18.64964886,178.53,178.49,21.13308585]
[1748371991461,18.64964886,178.53,178.5,21.13308585]
[1748371992160,18.64964886,178.53,178.49,21.13308585]
[1748371993653,18.64964886,178.53,178.5,21.13308585]
[1748371993654,1.96056463,178.52,178.5,21.13308585]
[1748371995129,18.64964886,178.51,178.47,26.0]
[1748371995328,18.64964886,178.51,178.48,21.13308585]
[1748371995557,0.56022408,178.5,178.48,21.13308585]
[1748371999760,1.9607843,178.5,178.49,21.13308585]
[1748372002171,1.9607843,178.5,178.46,41.0362]
[1748372002374,0.56022408,178.5,178.49,21.13308585]
[1748372002987,2.79861188,178.66,178.54,26.0]
[1748372003162,2.79861188,178.66,178.62,21.13308585]
[1748372003376,0.5597537,178.65,178.6,6.6607]
[1748372003573,0.5597537,178.65,178.64,21.13308585]
[1748372004167,0.5597537,178.65,178.6,9.4773537]
[1748372004403,0.5597537,178.65,178.64,21.13308585]
[1748372005065,18.64964886,178.64,178.55,16.8949]
[1748372005394,0.55991041,178.6,178.57,21.13308585]
[1748372005598,1.95968644,178.6,178.57,21.13308585]
[1748372005987,1.95968644,178.6,178.58,21.13308585]
[1748372006474,1.95968644,178.6,178.57,21.13308585]
[1748372007476,18.64964886,178.59,178.55,51.6749]
[1748372007667,18.64964886,178.59,178.55,36.45648585]
[1748372008292,18.64964886,178.59,178.56,21.13308585]
[1748372009201,0.55997312,178.58,178.56,21.13308585]
[1748372009989,0.55997312,178.58,178.55,30.31308585]
[1748372010497,1.95990592,178.58,178.54,21.13308585]
[1748372010907,1.95990592,178.58,178.51,11.07990794]
[1748372010908,4.75977152,178.58,178.51,11.07990794]
[1748372011085,39.78273471,178.55,178.47,1.5832]
[1748372011271,21.13308585,178.53,178.48,21.13308585]
[1748372011709,18.64964886,178.52,178.47,36.3632]
[1748372011908,18.64964886,178.52,178.48,21.13308585]
[1748372012416,18.64964886,178.52,178.49,21.13308585]
[1748372012593,1.96034501,178.54,178.5,21.13308585]
[1748372012784,20.60999387,178.54,178.5,21.13308585]
[1748372013709,20.60999387,178.54,178.51,21.13308585]
[1748372015119,1.96034501,178.54,178.52,21.13308585]
[1748372015404,1.96034501,178.54,178.51,21.13308585]
[1748372016908,1.40024644,178.54,178.51,21.13308585]
[1748372018991,1.40024644,178.54,178.52,21.13308585]
[1748372022196,1.40024644,178.54,178.47,114.45147971]
[1748372022384,1.40024644,178.54,178.52,21.13308585]
[1748372023696,1.40024644,178.54,178.47,114.45147971]
[1748372023898,1.40024644,178.54,178.52,21.13308585]
[1748372025595,1.40024644,178.54,178.53,21.13308585]
[1748372026003,1.40024644,178.54,178.47,93.31839386]
[1748372026317,1.40024644,178.54,178.51,21.13308585]
[1748372027222,1.40024644,178.54,178.47,93.31839386]
[1748372027395,1.40024644,178.54,178.51,21.13308585]
[1748372030514,1.40024644,178.54,178.52,21.13308585]
[1748372031311,1.40024644,178.54,178.53,21.13308585]
[1748372032718,1.40024644,178.54,178.52,21.13308585]
[1748372032920,1.40024644,178.54,178.48,34.76]
[1748372032921,1.40024644,178.54,178.53,21.13308585]
[1748372033111,0.5600672,178.55,178.53,21.13308585]
[1748372033320,0.5600672,178.55,178.54,21.13308585]
[1748372035006,1.40007159,178.57,178.54,21.13308585]
[1748372035220,1.40007159,178.57,178.56,21.13308585]
[1748372039222,1.40007159,178.57,178.53,40.9775]
[1748372039425,1.40007159,178.57,178.56,21.13308585]
[1748372040806,1.40007159,178.57,178.53,40.9775]
[1748372041013,1.40007159,178.57,178.56,21.13308585]
[1748372043220,27.40007159,178.57,178.53,6.2175]
[1748372043419,26.0,178.54,178.51,21.13308585]
[1748372043843,26.0,178.54,178.52,21.13308585]
[1748372044217,26.0,178.54,178.51,21.13308585]
[1748372045443,0.56012995,178.53,178.51,21.13308585]
[1748372047850,1.96045482,178.53,178.52,21.13308585]
[1748372048743,1.96045482,178.53,178.5,21.13308585]
[1748372052946,1.96045482,178.53,178.51,21.13308585]
[1748372057450,1.96045482,178.53,178.49,6.427]
[1748372057628,1.96045482,178.53,178.5,21.13308585]
[1748372059365,1.96045482,178.53,178.49,6.427]
[1748372059584,1.96045482,178.53,178.5,21.13308585]
[1748372063263,1.96045482,178.53,178.51,21.13308585]
[1748372070268,1.96045482,178.53,178.5,21.13308585]
[1748372070645,1.96045482,178.53,178.52,21.13308585]
[1748372070904,0.56012995,178.53,178.52,21.13308585]
[1748372071114,0.56010341,178.54,178.52,55.85308585]
[1748372071404,0.56010341,178.54,178.53,21.13308585]
[1748372071967,0.55997312,178.58,178.53,21.13308585]
[1748372072191,1.39990755,178.59,178.57,21.13308585]
[1748372072692,26.0,178.58,178.57,21.13308585]
[1748372072865,1.39990755,178.59,178.57,21.13308585]
[1748372073191,1.39990755,178.59,178.58,21.13308585]
[1748372073571,26.55991041,178.6,178.58,21.13308585]
[1748372073887,0.55991041,178.6,178.59,21.13308585]
[1748372074271,0.55987906,178.61,178.59,21.13308585]
[1748372074485,0.55987906,178.61,178.6,21.13308585]